fUST/lending_fUST_20250805
["ID","MTS","AMOUNT","RATE_DAILY","PERIOD"]
[377416649,1754400643934,-151.0,0.00027,7]
[377416651,1754400643943,-151.0,0.00027,7]
[377416652,1754400643953,-151.0,0.00027,7]
[377416653,1754400644038,-151.0,0.00027,7]
[377416654,1754400644049,-151.0,0.00027,13]
[377416655,1754400644059,-151.0,0.00027,7]
[377416656,1754400644070,-223.00187,0.00027,7]
[377416657,1754400644079,-218.130792,0.00027,7]
[377416658,1754400644088,-218.130792,0.00027,7]
[377416659,1754400644097,-151.0,0.00027,7]
[377416660,1754400644107,-151.0,0.00027,7]
[377416661,1754400644116,-151.0,0.00027,7]
[377416662,1754400644126,-699.065658,0.00027,7]
[377416663,1754400644135,-699.065658,0.00027,7]
[377416664,1754400644146,-275.533058,0.00027,7]
[377416665,1754400644157,-1748.447478,0.00027,7]
[377416666,1754400644168,-151.0,0.00027,11]
[377416667,1754400644178,-151.0,0.00027,7]
[377416668,1754400644187,-151.0,0.00027,7]
[377416669,1754400644197,-1048.309412,0.00027,7]
[377416670,1754400644207,-1048.309412,0.00027,7]
[377416671,1754400644216,-151.0,0.00027,7]
[377416672,1754400644226,-235.862635,0.00027,7]
[377416673,1754400644236,-235.862635,0.00027,7]
[377416674,1754400644247,-235.862635,0.00027,7]
[377416675,1754400644257,-235.862635,0.00027,7]
[377416676,1754400644266,-151.0,0.00027,7]
[377416677,1754400644275,-151.0,0.00027,7]
[377416678,1754400644285,-204.94111,0.00027,7]
[377416679,1754400644294,-151.0,0.00027,7]
[377416680,1754400644304,-295.869669,0.00027,7]
[377416681,1754400644314,-461.949867,0.00027,7]
[377416682,1754400644323,-461.949867,0.00027,7]
[377416683,1754400644332,-151.0,0.00027,7]
[377416684,1754400644342,-151.0,0.00027,20]
[377416685,1754400644352,-151.0,0.00027,17]
[377416686,1754400644362,-151.0,0.00027,13]
[377416687,1754400644371,-154.836075,0.00027,7]
[377416688,1754400644380,-364.231653,0.00027,7]
[377416689,1754400644389,-154.836075,0.00027,7]
[377416690,1754400644399,-364.231653,0.00027,7]
[377416691,1754400644408,-151.0,0.00027,7]
[377416692,1754400644418,-5794.5573048,0.00027,2]
[377416693,1754400644427,-151.0,0.00027,7]
[377416694,1754400644436,-151.0,0.00027,7]
[377416695,1754400644445,-461.15695721,0.00027,7]
[377416696,1754400644455,-151.0,0.00027,7]
[377416697,1754400644463,-151.0,0.00027,7]
[377416698,1754400644473,-500.0,0.0002703,2]
[377416699,1754400644483,-151.0,0.00027047,7]
[377416700,1754400644493,-151.0,0.00027047,7]
[377416701,1754400644502,-461.949867,0.00027047,7]
[377416702,1754400644512,-461.949867,0.00027047,7]
[377416703,1754400644521,-151.0,0.00027047,7]
[377416704,1754400644530,-151.0,0.00027049,7]
[377416705,1754400644539,-154.836075,0.00027049,7]
[377416706,1754400644549,-154.836075,0.00027049,7]
[377416707,1754400644558,-151.0,0.00027057,7]
[377416708,1754400644567,-151.998772,0.00027057,7]
[377416709,1754400644577,-151.998772,0.00027057,7]
[377416710,1754400644586,-151.0,0.00027057,7]
[377416711,1754400644596,-316.448996,0.00027057,7]
[377416712,1754400644606,-316.448996,0.00027057,7]
[377416713,1754400644615,-233.852732,0.00027057,7]
[377416714,1754400644624,-233.852732,0.00027057,7]
[377416715,1754400644634,-151.0,0.00027057,7]
[377416716,1754400644643,-151.0,0.00027057,7]
[377416717,1754400644653,-151.859292,0.00027057,7]
[377416718,1754400644662,-166.63347,0.00027057,7]
[377416719,1754400644671,-151.0,0.00027057,7]
[377416720,1754400644681,-166.63347,0.00027057,7]
[377416721,1754400644691,-151.0,0.00027057,7]
[377416722,1754400644700,-151.0,0.00027057,7]
[377416723,1754400644710,-151.0,0.00027057,7]
[377416724,1754400644719,-151.0,0.00027057,7]
[377416725,1754400644729,-151.0,0.00027057,7]
[377416726,1754400644739,-223.00187,0.00027057,7]
[377416727,1754400644749,-218.130792,0.00027057,7]
[377416728,1754400644759,-218.130792,0.00027057,7]
[377416729,1754400644769,-151.0,0.00027057,7]
[377416730,1754400644778,-699.065658,0.00027057,7]
[377416731,1754400644788,-699.065658,0.00027057,7]
[377416732,1754400644798,-152.055011,0.00027057,7]
[377416733,1754400644808,-151.0,0.00027057,7]
[377416734,1754400644817,-151.0,0.00027057,7]
[377416735,1754400644827,-312.16666667,0.00027057,7]
[377416736,1754400644837,-158.091904,0.00027057,7]
[377416737,1754400644846,-364.231653,0.00027057,7]
[377416738,1754400644856,-364.231653,0.00027057,7]
[377416739,1754400644866,-151.0,0.00027057,7]
[377416740,1754400644875,-151.0,0.00027057,7]
[377416741,1754400644885,-151.0,0.00027059,7]
[377416742,1754400644895,-151.0,0.00027059,7]
[377416743,1754400644904,-1748.447478,0.00027059,7]
[377416744,1754400644914,-1048.309412,0.00027059,7]
[377416745,1754400644925,-1048.309412,0.00027059,7]
[377416746,1754400644935,-153.0,0.00027059,2]
[377416747,1754400644945,-153.0,0.00027059,2]
[377416748,1754400644954,-151.0,0.00027062,7]
[377416749,1754400644965,-151.0,0.00027062,7]
[377416750,1754400644975,-151.998772,0.00027062,7]
[377416751,1754400644984,-151.998772,0.00027062,7]
[377416752,1754400644995,-161.34616802,0.00027063,2]
[377416753,1754400645006,-152.368067,0.00027067,7]
[377416754,1754400645016,-233.852732,0.00027067,7]
[377416755,1754400645025,-233.852732,0.00027067,7]
[377416756,1754400645034,-161.247325,0.00027067,7]
[377416757,1754400645043,-151.0,0.00027067,7]
[377416758,1754400645052,-166.63347,0.00027067,7]
[377416759,1754400645062,-151.0,0.00027067,7]
[377416760,1754400645072,-166.63347,0.00027067,7]
[377416761,1754400645082,-151.0,0.00027067,7]
[377416762,1754400645092,-316.448996,0.0002707,7]
[377416763,1754400645101,-316.448996,0.0002707,7]
[377416764,1754400645110,-151.0,0.00027072,7]
[377416765,1754400645119,-151.0,0.00027072,7]
[377416766,1754400645128,-151.0,0.00027072,7]
[377416767,1754400645137,-500.0,0.00027073,2]
[377416768,1754400645146,-501.14983369,0.00027073,2]
[377416769,1754400645155,-500.0,0.00027073,2]
[377416770,1754400645164,-528.82260462,0.00027073,2]
[377416771,1754400645173,-500.0,0.00027073,2]
[377416772,1754400645182,-500.0,0.00027073,2]
[377416773,1754400645191,-500.0,0.00027073,2]
[377416774,1754400645200,-500.0,0.00027073,2]
[377416775,1754400645209,-500.0,0.00027073,2]
[377416776,1754400645218,-500.0,0.00027073,2]
[377416777,1754400645227,-500.0,0.00027073,2]
[377416778,1754400645236,-500.0,0.00027073,2]
[377416779,1754400645246,-500.0,0.00027073,2]
[377416780,1754400645255,-500.47511383,0.00027073,2]
[377416781,1754400645264,-500.59559057,0.00027073,2]
[377416782,1754400645273,-500.0,0.00027073,2]
[377416783,1754400645282,-500.0,0.00027073,2]
[377416784,1754400645291,-500.0,0.00027073,2]
[377416785,1754400645300,-500.43249805,0.00027073,2]
[377416786,1754400645310,-505.55938349,0.00027073,2]
[377416787,1754400645319,-491.8380123,0.00027073,2]
[377416788,1754400645328,-500.0,0.00027073,2]
[377416789,1754400645337,-500.0,0.00027073,2]
[377416790,1754400645346,-500.0,0.00027073,2]
[377416791,1754400645355,-500.0,0.00027073,2]
[377416792,1754400645364,-500.0,0.00027073,2]
[377416793,1754400645374,-189.55897516,0.00027073,2]
[377416794,1754400645383,-500.0,0.00027073,2]
[377416795,1754400645391,-500.0,0.00027073,2]
[377416796,1754400645400,-500.0,0.00027073,2]
[377416797,1754400645410,-500.0,0.00027073,2]
[377416798,1754400645419,-500.0,0.00027073,2]
[377416799,1754400645428,-500.0,0.00027073,2]
[377416800,1754400645437,-500.0,0.00027073,2]
[377416801,1754400645446,-500.0,0.00027073,2]
[377416802,1754400645455,-500.0,0.00027073,2]
[377416803,1754400645463,-500.0,0.00027073,2]
[377416804,1754400645472,-500.0,0.00027073,2]
[377416805,1754400645482,-505.79870927,0.00027073,2]
[377416806,1754400645492,-503.39022341,0.00027073,2]
[377416807,1754400645501,-151.0,0.00027073,7]
[377416808,1754400645582,-151.998772,0.00027073,7]
[377416809,1754400645596,-151.998772,0.00027073,7]
[377416810,1754400645606,-151.0,0.00027073,7]
[377416811,1754400645615,-151.0,0.00027073,7]
[377416812,1754400645624,-151.0,0.00027073,7]
[377416813,1754400645634,-151.0,0.00027073,7]
[377416814,1754400645643,-244.678672,0.00027073,7]
[377416815,1754400645652,-151.0,0.00027073,7]
[377416816,1754400645661,-223.00187,0.00027073,7]
[377416817,1754400645671,-218.130792,0.00027073,7]
[377416818,1754400645680,-218.130792,0.00027073,7]
[377416819,1754400645689,-151.0,0.00027073,7]
[377416820,1754400645698,-699.065658,0.00027073,7]
[377416821,1754400645707,-699.065658,0.00027073,7]
[377416822,1754400645717,-1748.447478,0.00027073,7]
[377416823,1754400645727,-1748.447478,0.00027073,7]
[377416825,1754400645736,-151.0,0.00027073,7]
[377416827,1754400645745,-151.0,0.00027073,7]
[377416828,1754400645754,-1048.309412,0.00027073,7]
[377416829,1754400645764,-1048.309412,0.00027073,7]
[377416830,1754400645773,-244.677996,0.00027073,7]
[377416831,1754400645782,-235.862635,0.00027073,7]
[377416832,1754400645791,-235.862635,0.00027073,7]
[377416833,1754400645801,-151.0,0.00027073,7]
[377416834,1754400645810,-151.0,0.00027073,7]
[377416835,1754400645819,-461.949867,0.00027073,7]
[377416836,1754400645830,-461.949867,0.00027073,7]
[377416837,1754400645839,-154.836075,0.00027073,7]
[377416838,1754400645848,-364.231653,0.00027073,7]
[377416839,1754400645858,-154.836075,0.00027073,7]
[377416840,1754400645867,-364.231653,0.00027073,7]
[377416841,1754400645876,-151.0,0.00027073,7]
[377416842,1754400645885,-151.0,0.00027073,7]
[377416843,1754400645895,-151.0,0.00027073,7]
[377416844,1754400645904,-151.0,0.00027073,7]
[377416845,1754400645914,-151.0,0.00027073,7]
[377416846,1754400645925,-151.0,0.00027078,7]
[377416847,1754400645936,-151.0,0.00027078,7]
[377416848,1754400645945,-316.448996,0.00027078,7]
[377416849,1754400645955,-316.448996,0.00027078,7]
[377416850,1754400645965,-233.852732,0.00027078,7]
[377416851,1754400645975,-233.852732,0.00027078,7]
[377416852,1754400645985,-151.0,0.00027078,7]
[377416853,1754400645995,-166.63347,0.00027078,7]
[377416854,1754400646006,-151.0,0.00027078,7]
[377416855,1754400646016,-166.63347,0.00027078,7]
[377416856,1754400646026,-151.0,0.00027078,7]
[377416857,1754400646036,-151.0,0.0002708,7]
[377416858,1754400646046,-151.0,0.00027082,7]
[377416859,1754400646056,-151.0,0.00027082,7]
[377416860,1754400646066,-151.0,0.00027085,7]
[377416861,1754400646076,-151.0,0.00027085,7]
[377416862,1754400646086,-151.998772,0.00027085,7]
[377416863,1754400646095,-151.998772,0.00027085,7]
[377416864,1754400646105,-151.0,0.00027095,7]
[377416865,1754400646114,-151.0,0.00027095,7]
[377416866,1754400646124,-151.0,0.00027095,7]
[377416867,1754400646133,-151.0,0.00027095,7]
[377416868,1754400646143,-151.0,0.00027095,7]
[377416869,1754400646152,-218.130792,0.00027095,7]
[377416870,1754400646162,-218.130792,0.00027095,7]
[377416871,1754400646171,-699.065658,0.00027095,7]
[377416872,1754400646181,-699.065658,0.00027095,7]
[377416873,1754400646191,-151.0,0.00027098,7]
[377416874,1754400646200,-316.448996,0.00027098,7]
[377416875,1754400646209,-316.448996,0.00027098,7]
[377416876,1754400646218,-233.852732,0.00027098,7]
[377416877,1754400646228,-233.852732,0.00027098,7]
[377416878,1754400646238,-160.0,0.000271,2]
[377416879,1754400646248,-2050.98271896,0.00027101,2]
[377416880,1754400646257,-151.999999,0.00027101,2]
[377416881,1754400646266,-205.507265,0.00027101,7]
[377416882,1754400646276,-151.0,0.00027101,7]
[377416883,1754400646286,-151.998772,0.00027101,7]
[377416884,1754400646296,-151.998772,0.00027101,7]
[377416885,1754400646305,-151.0,0.00027101,7]
[377416886,1754400646315,-151.0,0.00027101,7]
[377416888,1754400646324,-223.00187,0.00027101,7]
[377416889,1754400646334,-153.681635,0.00027101,7]
[377416890,1754400646343,-1748.447478,0.00027101,7]
[377416891,1754400646353,-1748.447478,0.00027101,7]
[377416892,1754400646363,-151.0,0.00027101,7]
[377416893,1754400646372,-282.0,0.00027101,7]
[377416895,1754400646382,-1048.309412,0.00027101,7]
[377416898,1754400646391,-1048.309412,0.00027101,7]
[377416901,1754400646401,-235.862635,0.00027101,7]
[377416904,1754400646410,-235.862644,0.00027101,7]
[377416907,1754400646420,-151.0,0.00027101,7]
[377416911,1754400646429,-154.836075,0.00027101,7]
[377416914,1754400646441,-364.231653,0.00027101,7]
[377416917,1754400646450,-154.836082,0.00027101,7]
[377416920,1754400646459,-364.231662,0.00027101,7]
[377416923,1754400646468,-151.0,0.00027101,7]
[377416925,1754400646478,-151.0,0.00027101,7]
[377416928,1754400646487,-151.0,0.00027121,7]
[377416931,1754400646499,-166.63347,0.00027121,7]
[377416934,1754400646509,-151.0,0.00027121,7]
[377416937,1754400646518,-166.63347,0.00027121,7]
[377416939,1754400646528,-152.354531,0.00027121,7]
[377416941,1754400646537,-151.0,0.00027121,7]
[377416943,1754400646546,-160.0,0.00027178,2]
[377416945,1754400646556,-133352.97074851,0.000272,2]
[377416948,1754400646566,-4000.0,0.00027228,3]
[377416950,1754400646576,-185.57384,0.00027228,7]
[377416952,1754400646587,-768.78927065,0.00027247,2]
[377416954,1754400646596,-161.34616802,0.0002725,2]
[377416956,1754400646605,-1000.0,0.0002726,2]
[377416958,1754400646614,-1000.0,0.0002726,2]
[377416960,1754400646625,-1000.0,0.0002726,2]
[377416962,1754400646634,-1000.0,0.0002726,2]
[377416963,1754400646644,-1000.0,0.0002726,2]
[377416964,1754400646653,-606.02698813,0.0002726,2]
[377416965,1754400646663,-151.0,0.0002726,7]
[377416966,1754400646672,-461.949867,0.0002726,7]
[377416967,1754400646682,-461.949867,0.0002726,7]
[377416969,1754400646692,-151.0,0.0002726,7]
[377416971,1754400646702,-151.0,0.00027262,7]
[377416972,1754400646712,-294.670921,0.00027262,7]
[377416973,1754400646721,-325.0,0.00027277,3]
[377416974,1754400646731,-325.0,0.00027277,3]
[377416975,1754400646741,-316.448996,0.00027293,7]
[377416976,1754400646752,-316.448996,0.00027293,7]
[377416977,1754400646761,-500.01345688,0.00027304,2]
[377416978,1754400646771,-610.11731623,0.00027321,2]
[377416979,1754400646781,-500.0,0.00027321,2]
[377416980,1754400646790,-1000.0,0.00027321,2]
[377416981,1754400646800,-1000.0,0.00027321,2]
[377416982,1754400646810,-407.53732424,0.00027321,2]
[377416983,1754400646819,-428.50310293,0.00027321,2]
[377416984,1754400646829,-1000.0,0.00027321,2]
[377416985,1754400646838,-1000.0,0.00027321,2]
[377416986,1754400646847,-509.38329096,0.00027321,2]
[377416987,1754400646856,-1000.0,0.00027321,2]
[377416988,1754400646865,-151.0,0.00027321,7]
[377416989,1754400646875,-156.085243,0.00027321,7]
[377416990,1754400646885,-151.0,0.00027321,7]
[377416991,1754400646894,-218.130792,0.00027321,7]
[377416992,1754400646904,-218.130792,0.00027321,7]
[377416993,1754400646914,-699.065658,0.00027321,7]
[377416994,1754400646925,-699.065658,0.00027321,7]
[377416995,1754400646936,-3000.0,0.00027396,7]
[377416996,1754400646945,-151.0,0.00027421,7]
[377416997,1754400647029,-233.852732,0.00027421,7]
[377416998,1754400647040,-233.852732,0.00027421,7]
[377416999,1754400647051,-5000.0,0.00027482,3]
[377417000,1754400647060,-197.10721606,0.00027482,7]
[377417001,1754400647070,-151.998772,0.00027482,7]
[377417002,1754400647079,-151.998772,0.00027482,7]
[377417003,1754400647089,-156.204068,0.00027482,7]
[377417004,1754400647098,-151.0,0.00027482,7]
[377417005,1754400647108,-166.63347,0.00027482,7]
[377417006,1754400647118,-151.0,0.00027482,7]
[377417007,1754400647127,-166.63347,0.00027482,7]
[377417008,1754400647137,-223.001877,0.00027482,7]
[377417009,1754400647146,-1748.447478,0.00027482,7]
[377417010,1754400647155,-1748.447478,0.00027482,7]
[377417011,1754400647165,-1048.309412,0.00027482,7]
[377417012,1754400647175,-1048.309418,0.00027482,7]
[377417013,1754400647184,-151.0,0.00027482,7]
[377417014,1754400647193,-151.0,0.00027482,7]
[377417015,1754400647202,-501.38354254,0.00027521,5]
[377417016,1754400647212,-653.0185066,0.00027521,5]
[377417017,1754400647221,-1000.0,0.00027521,5]
[377417018,1754400647230,-500.0,0.00027521,5]
[377417019,1754400647239,-500.0,0.00027521,5]
[377417020,1754400647251,-503.41513277,0.00027521,5]
[377417021,1754400647262,-502.18745051,0.00027521,5]
[377417022,1754400647271,-151.0,0.00027521,7]
[377417023,1754400647281,-157.82712828,0.00027585,2]
[377417024,1754400647291,-161.34616802,0.00027611,2]
[377417025,1754400647301,-1000.0,0.00027621,5]
[377417026,1754400647311,-501.51774952,0.00027621,5]
[377417027,1754400647321,-1000.0,0.00027621,5]
[377417028,1754400647331,-509.11562668,0.00027621,5]
[377417029,1754400647341,-932.32361033,0.00027621,5]
[377417030,1754400647350,-1000.0,0.00027621,5]
[377417031,1754400647358,-500.0,0.00027621,5]
[377417032,1754400647367,-366.21517508,0.00027621,5]
[377417033,1754400647376,-500.0,0.00027621,5]
[377417034,1754400647386,-500.0,0.00027621,5]
[377417035,1754400647395,-1000.0,0.00027621,5]
[377417036,1754400647403,-1000.0,0.00027621,2]
[377417037,1754400647413,-1000.0,0.00027621,5]
[377417038,1754400647422,-500.0,0.00027621,5]
[377417039,1754400647431,-1000.0,0.00027621,5]
[377417040,1754400647440,-1000.0,0.00027621,5]
[377417041,1754400647450,-1021.19136704,0.00027621,5]
[377417042,1754400647459,-504.47321175,0.00027621,5]
[377417043,1754400647468,-505.65854865,0.00027621,5]
[377417044,1754400647478,-1000.0,0.00027621,5]
[377417045,1754400647487,-151.0,0.00027621,7]
[377417046,1754400647500,-316.448996,0.00027621,7]
[377417047,1754400647509,-316.448996,0.00027621,7]
[377417048,1754400647519,-260.0,0.00027648,2]
[377417049,1754400647528,-800.0,0.000277,3]
[377417050,1754400647537,-151.0,0.0002772,7]
[377417051,1754400647547,-233.852732,0.0002772,7]
[377417052,1754400647556,-233.852732,0.0002772,7]
[377417053,1754400647565,-151.0,0.00027753,7]
[377417054,1754400647574,-2000.0,0.00027773,2]
[377417055,1754400647584,-2000.0,0.00027773,2]
[377417056,1754400647593,-2000.0,0.00027773,2]
[377417057,1754400647603,-168.429,0.00027773,2]
[377417058,1754400647613,-285.989147,0.00027773,7]
[377417059,1754400647622,-151.0,0.00027773,7]
[377417060,1754400647632,-218.130792,0.00027773,7]
[377417061,1754400647641,-218.130783,0.00027773,7]
[377417062,1754400647651,-699.065658,0.00027773,7]
[377417063,1754400647664,-699.065664,0.00027773,7]
[377417064,1754400647673,-151.0,0.00027773,7]
[377417065,1754400647682,-461.949867,0.00027773,7]
[377417066,1754400647691,-461.94987684,0.00027773,7]
[377417067,1754400647700,-151.0,0.00027773,7]
[377417068,1754400647709,-152.68,0.00027819,15]
[377417069,1754400647717,-151.88,0.0002782,15]
[377417070,1754400647726,-1500.0,0.00027868,5]
[377417071,1754400647735,-1000.0,0.00027868,5]
[377417072,1754400647746,-500.0,0.00027868,5]
[377417073,1754400647754,-1500.0,0.00027868,5]
[377417074,1754400647763,-1500.0,0.00027868,5]
[377417075,1754400647772,-150.865956,0.0002787,6]
[377417076,1754400647781,-151.0,0.00027871,7]
[377417077,1754400647790,-166.63347,0.00027871,7]
[377417078,1754400647799,-166.63347,0.00027871,7]
[377417079,1754400647807,-151.998772,0.00027873,7]
[377417080,1754400647817,-151.998772,0.00027873,7]
[377417081,1754400647826,-151.998772,0.00027881,7]
[377417082,1754400647837,-151.998773,0.00027881,7]
[377417083,1754400647846,-316.448996,0.00027881,7]
[377417084,1754400647856,-316.448996,0.00027881,7]
[377417085,1754400647866,-156.1234136,0.00027881,30]
[377417086,1754400647875,-153.0,0.00027881,30]
[377417087,1754400647885,-153.0,0.00027881,30]
[377417088,1754400647894,-153.0,0.00027881,30]
[377417089,1754400647903,-153.0,0.00027881,30]
[377417090,1754400647913,-153.0,0.00027881,30]
[377417091,1754400647924,-153.0,0.00027881,30]
[377417092,1754400647934,-500.0,0.0002789,2]
[377417093,1754400647943,-5000.0,0.00027898,3]
[377417094,1754400647952,-152.68,0.00027919,15]
[377417095,1754400647963,-284.89267411,0.00027927,15]
[377417096,1754400647973,-150.0,0.00027933,5]
[377417097,1754400647982,-170.62,0.00027948,15]
[377417098,1754400647991,-152.88,0.0002795,15]
[377417099,1754400648005,-300.0,0.00027955,5]
[377417100,1754400648015,-274.119824,0.00027959,7]
[377417101,1754400648024,-233.852732,0.00027959,7]
[377417102,1754400648033,-233.852732,0.00027959,7]
[377417103,1754400648042,-151.0,0.00027959,7]
[377417104,1754400648052,-166.63347,0.00027959,7]
[377417105,1754400648062,-166.633475,0.00027959,7]
[377417106,1754400648079,-151.0,0.00028,13]
[377417107,1754400648088,-231.72586818,0.00028,10]
[377417108,1754400648098,-160.0,0.00028,10]
[377417109,1754400648107,-527.3554621,0.00028,10]
[377417110,1754400648117,-312.16666667,0.00028,10]
[377417111,1754400648127,-461.15695721,0.00028,10]
[377417112,1754400648136,-461.15695721,0.00028,10]
[377417113,1754400648146,-152.68,0.00028019,15]
[377417114,1754400648155,-161.34616802,0.0002804,2]
[377417115,1754400648165,-6000.0,0.00028042,3]
[377417116,1754400648175,-170.62,0.00028048,15]
[377417117,1754400648184,-152.88,0.0002805,15]
[377417118,1754400648194,-160.0,0.0002805,3]
[377417119,1754400648204,-527.3554621,0.0002805,3]
[377417120,1754400648214,-312.16666667,0.0002805,3]
[377417121,1754400648223,-500.0,0.00028068,5]
[377417122,1754400648233,-532.59507616,0.00028069,9]
[377417123,1754400648242,-160.0,0.000281,3]
[377417124,1754400648252,-371.92,0.00028106,3]
[377417125,1754400648262,-23009.51934145,0.00028109,2]
[377417126,1754400648271,-1043.24,0.00028116,3]
[377417127,1754400648281,-847.64,0.00028116,3]
[377417128,1754400648362,-423.82,0.00028116,3]
[377417129,1754400648372,-152.68,0.00028119,15]
[377417130,1754400648382,-170.62,0.00028148,15]
[377417131,1754400648392,-152.88,0.0002815,15]
[377417132,1754400648402,-316.448996,0.00028168,7]
[377417133,1754400648411,-316.449005,0.00028168,7]
[377417134,1754400648421,-1500.0,0.00028168,5]
[377417135,1754400648431,-500.0,0.00028168,5]
[377417136,1754400648440,-500.0,0.00028168,5]
[377417137,1754400648450,-500.0,0.00028168,5]
[377417138,1754400648459,-643.90803113,0.00028168,2]
[377417139,1754400648469,-1500.0,0.00028168,5]
[377417140,1754400648479,-1500.0,0.00028168,5]
[377417141,1754400648488,-1005.17341474,0.00028168,5]
[377417142,1754400648500,-1500.0,0.00028168,5]
[377417143,1754400648509,-500.0,0.00028173,2]
[377417144,1754400648519,-500.60871059,0.00028173,5]
[377417145,1754400648528,-150.0,0.00028173,3]
[377417146,1754400648538,-500.0,0.00028173,5]
[377417147,1754400648548,-855.3500093,0.00028177,30]
[377417148,1754400648558,-360.0,0.00028196,2]
[377417149,1754400648567,-150.865956,0.000282,2]
[377417150,1754400648577,-461.15695721,0.000282,3]
[377417151,1754400648587,-161.34616802,0.00028209,2]
[377417152,1754400648596,-233.852732,0.00028209,7]
[377417153,1754400648606,-233.852738,0.00028209,7]
[377417154,1754400648616,-6000.0,0.00028211,3]
[377417155,1754400648626,-3000.0,0.00028218,7]
[377417156,1754400648637,-152.7,0.00028219,15]
[377417157,1754400648646,-170.64,0.00028248,15]
[377417158,1754400648656,-152.88,0.0002825,15]
[377417159,1754400648672,-502.904,0.000283,2]
[377417160,1754400648682,-460.0,0.000283,2]
[377417161,1754400648691,-152.88,0.0002835,15]
[377417162,1754400648701,-8000.0,0.00028416,3]
[377417163,1754400648710,-509.3110749,0.00028416,5]
[377417164,1754400648719,-1000.0,0.00028416,5]
[377417165,1754400648729,-2000.0,0.00028416,5]
[377417166,1754400648739,-152.88,0.0002845,15]
[377417167,1754400648750,-300.47853833,0.00028481,5]
[377417168,1754400648759,-150.865956,0.00028507,2]
[377417169,1754400648770,-1000.0,0.00028517,5]
[377417170,1754400648780,-850.68793609,0.00028531,2]
[377417171,1754400648790,-152.88,0.0002855,15]
[377417172,1754400648799,-174.0,0.00028575,30]
[377417173,1754400648808,-3072.08192553,0.00028619,2]
[377417174,1754400648817,-152.88,0.0002865,15]
[377417175,1754400648827,-1928.51014532,0.00028716,5]
[377417176,1754400648837,-1000.0,0.00028716,5]
[377417177,1754400648846,-2000.0,0.00028716,5]
[377417178,1754400648856,-8000.0,0.00028719,3]
[377417179,1754400648866,-460.0,0.00028744,2]
[377417180,1754400648876,-152.88,0.0002875,15]
[377417181,1754400648885,-150.865956,0.00028815,2]
[377417182,1754400648895,-152.88,0.0002885,15]
[377417183,1754400648905,-231.72586818,0.0002888,2]
[377417184,1754400648914,-215.21874788,0.0002888,2]
[377417185,1754400648925,-160.0,0.0002888,2]
[377417186,1754400648935,-160.0,0.0002888,2]
[377417187,1754400648945,-312.16666667,0.0002891,2]
[377417188,1754400648954,-160.0,0.0002891,2]
[377417189,1754400648965,-527.3554621,0.0002891,2]
[377417190,1754400648975,-12655.02535889,0.0002891,2]
[377417191,1754400648985,-420.0,0.00028911,2]
[377417192,1754400648996,-1200.0,0.00028915,2]
[377417193,1754400649011,-160.0,0.00028949,2]
[377417194,1754400649021,-160.0,0.00028949,2]
[377417195,1754400649030,-160.0,0.00028949,2]
[377417196,1754400649039,-160.0,0.00028949,2]